bitfinex/quotes_ETHUSD_20250403
["timestamp","ask_amount","ask_price","bid_price","bid_amount"]
[1743687055596,5.63795,1773.7,1773.1,0.10639554]
[1743687055799,5.63838,1773.6,1773.1,5.68969]
[1743687055995,5.63838,1773.6,1773.1,1.182956]
[1743687056230,3.0,1774.2,1773.4,5.63866]
[1743687056495,8.63602,1774.3,1773.2,12.1962]
[1743687056714,5.6384,1773.6,1773.2,12.19647]
[1743687056921,5.6384,1773.6,1773.2,17.83581]
[1743687057129,5.637,1774.0,1773.6,5.63805]
[1743687057297,5.637,1774.0,1773.4,5.63861]
[1743687057630,5.63697,1774.1,1773.7,11.27565]
[1743687057847,11.2729,1774.2,1773.8,5.63735]
[1743687058252,6.557,1774.6,1773.3,3.0]
[1743687058253,5.63539,1774.5,1773.3,3.0]
[1743687058414,5.63518,1774.6,1774.2,5.63621]
[1743687058731,5.63571,1774.4,1774.1,5.63662]
[1743687058918,5.63584,1774.4,1774.0,5.63697]
[1743687059123,5.63606,1774.3,1773.9,5.63727]
[1743687059312,5.63505,1774.7,1773.8,6.556]
[1743687059511,0.563505,1774.7,1774.0,5.63695]
[1743687059714,5.63529,1774.6,1774.2,5.63623]
[1743687059924,5.63529,1774.6,1774.2,5.63613]
[1743687060322,5.63376,1775.1,1774.6,5.63487]
[1743687060522,5.63369,1775.1,1774.7,5.63454]
[1743687060736,5.63395,1775.0,1774.6,5.63496]
[1743687060933,5.63395,1775.0,1774.5,5.63509]
[1743687061134,0.563395,1775.0,1774.0,5.63697]
[1743687061336,5.63641,1774.2,1773.8,5.63751]
[1743687061633,5.63641,1774.2,1773.8,5.63747]
[1743687061937,5.63604,1774.3,1773.4,0.3]
[1743687061938,5.63725,1774.0,1773.6,5.63822]
[1743687062135,6.556,1774.6,1773.7,0.05637677]
[1743687062335,5.63691,1774.1,1773.2,13.983831]
[1743687062536,5.63734,1773.9,1773.5,5.63854]
[1743687062739,5.63763,1773.8,1773.4,5.63887]
[1743687062907,11.27545,1773.8,1773.4,5.63888]
[1743687063236,5.63697,1774.0,1773.6,5.63814]
[1743687063424,0.55,1774.4,1773.4,5.63888]
[1743687063623,5.63772,1773.8,1773.3,7.09383588]
[1743687063825,5.63761,1773.8,1773.3,0.05638278]
[1743687064028,5.63791,1773.8,1773.5,5.63853]
[1743687064207,5.6368,1774.1,1773.6,0.05638404]
[1743687064410,5.63553,1774.5,1774.0,5.63667]
[1743687064628,5.63605,1774.3,1773.9,5.63712]
[1743687064940,5.63646,1774.2,1773.8,11.27501]
[1743687065109,5.63605,1774.3,1773.9,5.63716]
[1743687065110,11.27227,1774.3,1773.9,5.63716]
[1743687065305,5.63638,1774.2,1773.6,6.555]
[1743687065505,5.63613,1774.3,1773.9,11.27443]
[1743687065742,11.27169,1774.4,1774.0,5.63695]
[1743687065926,5.63571,1774.4,1773.7,3.0]
[1743687066127,5.63574,1774.4,1774.0,5.63667]
[1743687066330,5.63539,1774.5,1773.8,5.9374]
[1743687066526,5.63635,1774.2,1773.8,5.63748]
[1743687066731,5.63668,1774.1,1773.7,5.63781]
[1743687066934,5.63635,1774.2,1773.5,12.19355]
[1743687067117,5.63583,1774.4,1774.0,5.63686]
[1743687067323,5.63457,1774.8,1774.1,5.63666]
[1743687067640,5.63413,1774.9,1774.2,0.563666]
[1743687067814,5.63581,1774.4,1774.0,12.19185]
[1743687068013,5.63541,1774.5,1774.1,5.63649]
[1743687068339,6.555,1774.7,1773.3,5.6392]
[1743687068540,5.63602,1774.3,1773.5,5.63852]
[1743687068733,5.6372,1774.0,1773.6,5.63802]
[1743687069076,5.63544,1774.5,1773.5,1.527729]
[1743687069227,5.63784,1773.8,1773.4,9.63885]
[1743687069543,5.63784,1773.8,1773.1,12.24459]
[1743687069544,5.63781,1773.8,1773.3,5.63902]
[1743687069858,5.63763,1773.8,1773.5,5.63852]
[1743687070009,5.63678,1774.1,1773.1,12.24483]
[1743687070210,5.63804,1773.7,1773.3,11.27804]
[1743687070531,5.63754,1773.9,1773.4,0.05638218]
[1743687070749,5.63668,1774.1,1773.8,5.63746]
[1743687070947,3.86976035,1775.0,1773.6,11.27648]
[1743687071155,7.13e-06,1775.2,1775.1,6.18348]
[1743687071353,1.57342204,1775.7,1775.6,5.63189]
[1743687071675,0.05,1776.9,1775.8,3.87608903]
[1743687071947,0.05,1776.9,1776.8,5.62809]
[1743687072173,1e-05,1776.9,1776.8,19.66335889]
[1743687072448,0.05,1777.9,1777.0,5.6274]
[1743687072614,5.6749,1777.9,1777.3,5.62625]
[1743687072818,0.05,1777.9,1777.2,3.0]
[1743687073019,0.05,1777.9,1777.8,5.62492]
[1743687073214,0.05,1777.9,1777.8,9.55092454]
[1743687073413,1e-05,1777.9,1777.8,12.55090759]
[1743687073612,0.05,1778.9,1778.7,5.62205]
[1743687073838,1e-05,1778.9,1778.8,5.67797905]
[1743687074053,1e-05,1778.9,1778.8,5.62176]
[1743687074564,0.16814617,1779.6,1778.8,5.62176]
[1743687074565,0.16814617,1779.6,1779.5,5.61955]
[1743687074857,0.05,1780.9,1780.8,8.61545]
[1743687075057,5.61118,1782.2,1781.4,5.61338]
[1743687075351,3.86976035,1782.8,1781.5,0.05613094]
[1743687075556,3.86976035,1782.8,1780.8,11.83930535]
[1743687075557,7.141,1782.4,1781.2,5.61403]
[1743687075727,5.61339,1781.5,1780.8,5.61522]
[1743687075927,5.76508983,1781.4,1780.5,11.23246]
[1743687076117,0.20734312,1781.4,1780.7,3.86976035]
[1743687076324,0.15122983,1781.4,1781.1,3.0]
[1743687076522,5.61003,1782.6,1781.8,5.61224]
[1743687076742,0.13862734,1782.5,1781.9,0.05611508]
[1743687076969,0.13862734,1782.5,1781.4,7.434]
[1743687077172,5.61198,1781.9,1781.1,0.55]
[1743687077345,5.61267,1781.7,1781.0,40.547]
[1743687077544,5.61267,1781.7,1781.1,0.05612756]
[1743687077771,0.13862734,1781.6,1780.9,5.67121266]
[1743687077971,5.61399,1781.3,1780.4,3.0]
[1743687078185,5.60863,1783.0,1781.0,3.0]
[1743687078482,19.04051924,1784.2,1781.7,3.0]
[1743687078483,5.65906,1782.9,1781.7,3.0]
[1743687078643,0.13862734,1782.8,1782.6,5.60958]
[1743687078974,0.13862734,1782.8,1782.5,3.0]
[1743687078975,5.60606,1783.8,1783.0,5.60845]
[1743687079156,5.60606,1783.8,1782.1,0.55]
[1743687079157,5.606,1783.8,1782.1,0.55]
[1743687079341,5.60867,1783.0,1781.9,5.61182]
[1743687079574,7.637,1783.2,1781.9,5.61176]
[1743687079746,5.61038,1782.5,1781.6,5.61264]
[1743687079947,5.60954,1782.7,1781.5,3.0]
[1743687080185,5.61009,1782.5,1781.3,4.20060887]
[1743687080479,5.61316,1781.6,1781.3,4.20060887]
[1743687080642,5.61429,1781.2,1780.9,0.10424053]
[1743687080840,5.61482,1781.0,1780.9,0.10424053]
[1743687081248,9.16482,1781.0,1780.9,5.3e-07]
[1743687081502,8.56482,1781.0,1780.9,5.3e-07]
[1743687081946,5.61625,1780.6,1780.1,0.05]
[1743687082146,5.61641,1780.5,1780.1,0.05]
[1743687082389,7.753,1780.7,1780.1,0.05]
[1743687082552,5.61734,1780.2,1780.1,0.05]
[1743687083352,5.61982,1779.5,1779.1,0.05]
[1743687083875,5.61941,1779.6,1779.1,0.05]
[1743687084075,5.6194,1779.6,1779.1,0.05]
[1743687084278,5.62035,1779.3,1779.1,0.05]
[1743687084447,6.182535,1779.2,1779.1,0.05]
[1743687084879,5.62134,1779.0,1778.1,5.67368]
[1743687085182,5.62011,1779.4,1778.7,5.62204]
[1743687085383,0.1,1780.4,1778.5,5.62249]
[1743687085384,13.34654,1779.9,1778.9,5.62113]
[1743687085696,5.62086,1779.1,1778.2,13.35239]
[1743687085898,5.62202,1778.8,1778.2,1.87594739]
[1743687086183,3.562086,1779.1,1778.1,0.05]
[1743687086345,5.62307,1778.4,1778.1,0.05]
[1743687086548,11.24592,1778.5,1778.1,0.05]
[1743687086759,7.747,1778.9,1778.1,0.05]
[1743687086760,13.36872,1778.9,1778.1,0.05]
[1743687086962,5.62192,1778.8,1778.1,5.67381]
[1743687087161,7.747,1778.9,1778.1,0.05]
[1743687087381,5.62235,1778.7,1778.2,0.056223]
[1743687088109,13.36868,1778.9,1778.2,0.056223]
[1743687088110,5.62043,1779.3,1778.6,5.62239]
[1743687088400,5.61851,1779.9,1778.7,7.7932107]
[1743687088600,6.180461,1779.8,1778.7,7.7932107]
[1743687088757,5.62069,1779.2,1778.6,0.7978]
[1743687088963,3.0,1779.5,1778.6,0.7978]
[1743687089261,5.62043,1779.3,1778.5,5.62255]
[1743687089457,8.293851,1779.8,1778.6,5.67857874]
[1743687089700,5.62078,1779.2,1778.5,5.62269]
[1743687089997,5.6213,1779.0,1778.4,5.62277]
[1743687090195,7.747,1779.0,1778.1,0.05]
[1743687090396,5.62231,1778.7,1778.1,5.67396]
[1743687090594,7.747,1779.0,1778.2,0.05623098]
[1743687090908,5.62256,1778.6,1778.2,0.05623098]
[1743687091086,0.561851,1778.9,1778.2,0.05623098]
[1743687091257,0.561851,1778.9,1778.1,5.67397]
[1743687091258,5.62288,1778.5,1778.1,0.05]
[1743687091462,5.62194,1778.8,1778.1,5.67372]
[1743687091670,5.62168,1778.9,1778.3,11.24643]
[1743687091871,8.5443,1779.2,1778.2,5.62366]
[1743687092104,5.6218,1778.8,1778.3,5.6233]
[1743687092407,14.16509,1779.2,1778.1,0.05]
[1743687092408,8.5443,1779.2,1778.1,0.05]
[1743687092708,5.62261,1778.6,1778.1,0.05]
[1743687093007,5.62113,1779.0,1778.1,0.05]
[1743687093212,5.62316,1778.4,1778.1,0.05]
[1743687093411,5.62176,1778.8,1778.1,0.05]
[1743687093597,5.62366,1778.2,1778.1,0.05]
[1743687095076,5.62325,1778.4,1778.1,0.05]
[1743687095310,5.62366,1778.2,1778.1,0.05]
[1743687095685,11.24716,1778.3,1778.1,0.05]
[1743687095885,5.62304,1778.4,1778.1,0.05]
[1743687096091,5.62271,1778.5,1778.1,0.05]
[1743687096602,5.62213,1778.7,1778.2,0.05623153]
[1743687096789,5.62348,1778.3,1778.1,0.05]
[1743687096988,10.002383,1778.9,1778.1,0.05]
[1743687097215,5.62335,1778.3,1778.1,0.05]
[1743687097412,5.62295,1778.5,1778.1,0.05]
[1743687097611,5.62242,1778.6,1778.1,5.67386]
[1743687097777,5.62272,1778.5,1778.1,0.05]
[1743687097983,5.62184,1778.8,1778.3,5.6231]
[1743687098193,5.62212,1778.7,1778.2,5.62354]
[1743687098394,7.718,1779.0,1778.3,0.05622391]
[1743687098395,11.24259,1779.0,1778.3,0.05622391]
[1743687098708,5.62172,1778.9,1778.4,5.62286]
[1743687098912,5.62171,1778.9,1778.5,0.05621908]
[1743687099110,5.6224,1778.6,1778.1,0.05]
[1743687099324,5.62161,1778.9,1778.1,5.73007247]
[1743687099490,5.62142,1779.0,1778.1,0.10623247]
[1743687099686,3.0,1779.1,1778.1,0.10623247]
[1743687099889,8.272,1779.3,1778.3,5.62332]
[1743687099890,5.62192,1778.8,1778.3,5.62332]
[1743687100121,5.62192,1778.8,1778.3,11.2463]
[1743687100325,7.698,1779.2,1778.4,0.05622203]
[1743687100508,5.61941,1779.6,1779.1,5.62079]
[1743687100709,5.61922,1779.7,1779.3,5.62015]
[1743687100923,5.6184,1779.9,1779.4,5.67603605]
[1743687101224,5.6184,1779.9,1778.8,5.62175]
[1743687101225,5.61958,1779.5,1778.9,0.7973]
[1743687101441,5.61987,1779.4,1778.9,0.7973]
[1743687101742,5.6175,1780.2,1779.1,5.62055]
[1743687101902,5.61927,1779.6,1779.0,5.62113]
[1743687102090,7.688,1780.1,1779.3,5.61995]
[1743687102297,11.23706,1779.9,1779.3,11.23991]
[1743687102637,5.6185,1779.9,1779.4,5.67605044]
[1743687102806,5.61867,1779.8,1779.4,0.05619044]
[1743687103006,5.61867,1779.8,1779.3,11.23991]
[1743687103222,5.72390914,1779.7,1779.4,0.05619044]
[1743687103404,0.10497914,1779.7,1779.0,0.17568277]
[1743687103603,0.10497914,1779.7,1779.3,0.17568277]
[1743687103604,5.6197,1779.5,1779.3,0.17568277]
[1743687103809,5.61987,1779.4,1779.3,0.17568277]
[1743687104121,5.73008453,1779.4,1779.3,0.17568277]
[1743687104492,0.11021453,1779.4,1779.3,0.17568277]
[1743687104933,5.73008453,1779.4,1779.3,0.17568277]
[1743687105111,0.11021453,1779.4,1779.0,5.67710535]
[1743687105297,0.11021453,1779.4,1779.1,5.62066]
[1743687105503,0.11021453,1779.4,1779.0,5.62112]
[1743687105709,5.61971,1779.5,1779.1,0.0562002]
[1743687105925,5.61971,1779.5,1779.0,0.0562021]
[1743687105926,5.73053453,1779.3,1779.0,0.0562021]
[1743687106139,5.62094,1779.1,1778.9,0.17568277]
[1743687106303,5.62113,1779.0,1778.9,0.17568277]
[1743687106489,5.73051485,1779.0,1778.9,0.17568277]
[1743687106707,5.62145,1778.9,1778.8,0.17568277]
[1743687107112,5.72917513,1778.9,1778.8,0.17568277]
[1743687107351,0.10772513,1778.9,1778.8,0.17568277]
[1743687107713,5.72917513,1778.9,1778.8,0.17568277]
[1743687108115,5.62145,1778.9,1778.8,0.17568277]
[1743687108614,5.62156,1778.9,1778.2,0.05622953]
[1743687108810,0.7568,1779.3,1778.5,5.62259]
[1743687109015,3.0,1779.5,1778.7,0.8247]
[1743687109016,5.61961,1779.5,1778.7,0.8247]
[1743687109322,5.61734,1780.2,1779.4,0.8137]
[1743687109647,5.61843,1779.9,1779.5,0.05618736]
[1743687109848,5.61843,1779.9,1779.4,0.8137]
[1743687109849,5.61819,1780.0,1779.4,6.43343]
[1743687110012,11.23645,1780.0,1779.4,12.10932274]
[1743687110210,5.61819,1780.0,1779.5,5.61934]
[1743687110409,5.61819,1780.0,1779.4,0.86988787]
[1743687110645,5.61834,1779.9,1779.4,6.43351]
[1743687110944,5.61819,1780.0,1779.4,6.43336]
[1743687111132,5.62268,1780.1,1779.4,0.8137]
[1743687111332,5.61936,1779.6,1779.1,5.6208]
[1743687111533,5.61893,1779.7,1779.1,5.62065]
[1743687111735,5.61938,1779.6,1779.5,0.80777694]
[1743687113139,5.61924,1779.6,1779.5,0.80777694]
[1743687113449,5.61924,1779.6,1779.1,5.62075]
[1743687113450,5.61892,1779.7,1779.1,0.28098541]
[1743687113744,5.61974,1779.5,1779.1,0.28098541]
[1743687113943,5.61935,1779.6,1779.1,5.90179541]
[1743687114170,0.005,1780.1,1779.2,0.05620078]
[1743687114333,0.005,1780.1,1779.4,5.61987]
[1743687114647,0.005,1780.1,1780.0,5.61797]
[1743687114825,0.005,1780.1,1780.0,6.43787]
[1743687115026,1.24292464,1781.4,1780.8,5.61545]
[1743687115348,5.61465,1781.1,1780.7,0.8199]
[1743687115552,5.66517,1780.9,1780.3,5.61701]
[1743687115745,0.616517,1780.9,1780.2,5.61734]
[1743687115937,5.61561,1780.8,1780.3,5.61698]
[1743687116138,0.05,1780.9,1780.5,5.61639]
[1743687116341,0.05,1780.9,1780.8,5.61545]
[1743687116673,0.05,1780.9,1780.8,6.44599365]
[1743687116858,5.61351,1781.5,1781.0,5.61477]
[1743687117171,5.61249,1781.8,1781.2,5.61406]
[1743687117320,5.61313,1781.6,1781.0,1.122964]
[1743687117521,5.61341,1781.5,1780.9,5.61513]
[1743687117721,5.61287,1781.7,1781.1,5.61425]
[1743687118019,11.27415,1781.9,1781.2,0.0561308]
[1743687118172,0.11791742,1781.6,1781.5,5.61315]
[1743687118378,0.05,1781.9,1781.8,5.6123]
[1743687118779,0.05,1781.9,1781.7,11.22514]
[1743687118942,0.05,1781.9,1781.5,0.8055]
[1743687119294,5.61278,1781.7,1781.6,0.17539737]
[1743687119434,6.174058,1781.7,1781.6,0.17539737]
[1743687120270,5.61252,1781.8,1781.6,0.17539737]
[1743687120481,5.61373,1781.4,1781.1,0.7847]
[1743687120636,5.61373,1781.4,1780.4,0.72539737]
[1743687120637,5.66198,1781.9,1780.9,0.05612503]
[1743687120851,5.66198,1781.9,1780.4,0.17539737]
[1743687120852,0.55,1781.1,1780.4,0.17539737]
[1743687121064,5.61639,1780.5,1780.4,0.17539737]
[1743687121550,0.02914239,1780.5,1779.8,0.7847]
[1743687121731,5.61892,1779.7,1779.6,6.0102544]
[1743687122059,5.75399306,1779.7,1779.6,0.17539737]
[1743687122225,0.13507306,1779.7,1779.6,0.17539737]
[1743687122847,5.75399306,1779.7,1779.6,0.17539737]
[1743687123048,5.75399306,1779.7,1779.1,0.10619339]
[1743687123049,0.13507306,1779.7,1779.1,0.05]
[1743687123560,5.61903,1779.7,1779.1,0.05]
[1743687123739,5.72990361,1779.6,1779.1,0.05]
[1743687123939,0.11053361,1779.6,1779.2,5.67670072]
[1743687124139,5.61958,1779.5,1779.1,0.05]
[1743687124460,0.11053361,1779.4,1779.1,0.05]
[1743687124831,0.11053361,1779.4,1779.3,5.62018]
[1743687125043,5.61944,1779.6,1779.1,0.05]
[1743687125243,5.61917,1779.7,1779.1,0.05]
[1743687125437,5.61917,1779.7,1779.2,5.62025]
[1743687125658,5.6205,1779.2,1779.1,0.05]
[1743687126264,7.645,1779.8,1779.1,0.05]
[1743687126265,7.65,1779.9,1779.2,5.6205]
[1743687126438,13.26848,1779.9,1779.4,5.6197]
[1743687126637,7.65,1779.9,1779.2,5.62035]
[1743687126838,5.61908,1779.7,1779.1,5.67066]
[1743687127056,7.65,1779.9,1779.2,5.67658633]
[1743687127364,5.6205,1779.2,1779.1,0.05]
[1743687128067,6.39471,1779.7,1779.2,5.62049]
[1743687128370,5.61874,1779.8,1779.2,5.62036]
[1743687128565,5.61905,1779.7,1779.1,5.72682632]
[1743687128739,5.61937,1779.6,1779.1,5.72699632]
[1743687128946,11.23887,1779.6,1779.1,0.10619632]
[1743687129141,5.62034,1779.3,1779.1,0.05]
[1743687129346,5.6205,1779.2,1779.1,0.05]
[1743687129550,6.18255,1779.2,1779.1,0.05]
[1743687129962,5.62029,1779.3,1779.1,0.05]
[1743687130165,5.61873,1779.8,1779.1,0.05]
[1743687130166,5.61876,1779.8,1779.3,5.62002]
[1743687130345,5.61799,1780.0,1779.4,0.05619374]
[1743687130541,5.61852,1779.9,1779.4,0.05619374]
[1743687130742,5.61766,1780.1,1779.5,5.61938]
[1743687130971,0.7986,1780.7,1779.7,5.61892]
[1743687131173,0.7986,1780.7,1779.7,5.61879]
[1743687131174,5.61639,1780.5,1779.7,5.61879]
[1743687131472,5.61639,1780.5,1779.2,3.0]
[1743687131473,5.6205,1779.2,1779.1,0.05]
[1743687131842,5.6205,1779.2,1778.2,5.62349]
[1743687131843,5.62145,1778.9,1778.8,7.37e-06]
[1743687132045,5.62145,1778.9,1778.7,3.16e-06]
[1743687132046,5.62176,1778.8,1778.7,3.16e-06]
[1743687132374,5.62274,1778.5,1778.1,0.05]
[1743687132540,5.62324,1778.4,1778.1,0.05]
[1743687132744,5.62273,1778.5,1778.1,0.05]
[1743687133178,7.752,1778.8,1778.2,5.62343]
[1743687133473,5.62366,1778.2,1778.1,0.05]
[1743687133650,6.186026,1778.2,1778.1,0.05]
[1743687133853,5.62366,1778.2,1778.1,0.05]
[1743687134250,5.62345,1778.3,1778.1,0.05]
[1743687134546,6.45115,1779.0,1778.2,0.7882]
[1743687134853,5.62366,1778.2,1778.1,0.05]
[1743687135243,14.5970123,1778.2,1778.1,1e-05]
[1743687135447,14.5970123,1778.2,1776.8,0.8108]
[1743687135448,5.62678,1777.3,1776.8,0.8108]
[1743687135639,13.39074,1777.6,1776.8,0.8108]
[1743687135844,5.62636,1777.4,1776.8,6.43876]
[1743687136039,5.6262,1777.4,1776.8,12.06672]
[1743687136246,5.62682,1777.2,1776.4,0.8031]
[1743687136778,5.62682,1777.2,1776.4,6.43223]
[1743687137314,5.62661,1777.3,1776.7,5.6282]
[1743687137524,5.62682,1777.2,1777.1,1e-05]
[1743687137811,5.62682,1777.2,1776.1,5.6803]
[1743687137812,5.62855,1776.7,1776.1,5.6803]
[1743687138009,13.40967,1777.0,1776.4,5.6292]
[1743687138168,7.782,1777.0,1776.6,5.62857]
[1743687138359,40.469,1777.5,1776.8,5.62791]
[1743687138564,5.62679,1777.3,1776.7,6.42403]
[1743687138795,5.62624,1777.4,1776.8,5.68416469]
[1743687139015,5.6256,1777.6,1776.8,0.05627469]
[1743687139175,8.5961,1777.7,1776.7,0.7958]
[1743687139390,5.62727,1777.1,1776.5,5.62888]
[1743687139697,5.62823,1776.8,1776.3,6.39508]
[1743687139870,5.62874,1776.6,1776.1,5.68004]
[1743687140069,5.62988,1776.3,1776.1,0.05]
[1743687141300,5.62999,1776.2,1776.1,0.05]
[1743687141873,5.62999,1776.2,1775.2,0.7779]
[1743687141874,5.63203,1775.6,1775.2,0.7779]
[1743687142084,19.01502,1775.8,1775.2,5.63302]
[1743687142268,13.39091,1776.3,1775.6,5.63171]
[1743687142469,0.8089,1776.4,1775.6,5.63171]
[1743687142470,5.63017,1776.2,1775.6,5.63171]
[1743687142665,7.76,1776.7,1775.7,0.05631614]
[1743687142908,7.76,1776.7,1776.2,11.25966]
[1743687143068,0.41706991,1776.8,1776.2,1.906066]
[1743687143400,5.62765,1777.0,1776.3,5.68593396]
[1743687143615,5.6284,1776.8,1776.2,0.7801]
[1743687143777,5.62773,1777.0,1776.3,5.62953]
[1743687144099,5.62737,1777.1,1776.2,6.41001]
[1743687144297,5.62662,1777.3,1776.2,6.41001]
[1743687144298,5.62763,1777.0,1776.2,6.41009]
[1743687144474,5.62781,1776.9,1776.2,6.40991]
[1743687144675,6.190393,1777.0,1776.2,0.7801]
[1743687144676,5.62837,1776.8,1776.2,0.7801]
[1743687144876,5.62836,1776.8,1776.2,0.7801]
[1743687145079,13.38957,1776.7,1776.2,0.7801]
[1743687145291,7.761,1776.7,1776.3,5.68568553]
[1743687145482,7.756,1777.1,1776.3,0.70287408]
[1743687145696,7.756,1777.1,1776.4,5.62911]
[1743687145996,5.62802,1776.9,1776.2,6.40989]
[1743687146209,7.75,1777.2,1776.3,0.05629109]
[1743687146368,5.62714,1777.1,1776.2,0.7801]
[1743687146571,7.75,1777.2,1776.4,5.62936]
[1743687146874,7.75,1777.2,1776.6,5.62846]
[1743687146875,5.627,1777.2,1776.6,5.62846]
[1743687147070,5.62609,1777.5,1776.9,5.62761]
[1743687147265,13.37128,1777.4,1776.9,5.62761]
[1743687147477,13.37128,1777.4,1776.8,5.62806]
[1743687147678,7.745,1777.4,1776.2,0.7801]
[1743687148009,13.37123,1777.4,1776.3,5.62947]
[1743687148217,5.62801,1776.9,1776.4,5.62911]
[1743687148499,5.62614,1777.5,1776.6,0.7858]
[1743687148720,5.62682,1777.3,1776.7,5.6282]
[1743687148928,5.62592,1777.5,1776.7,0.05628227]
[1743687149074,0.8122,1777.6,1776.6,0.84207489]
[1743687149273,7.739,1777.8,1777.5,5.62575]
[1743687149479,0.05,1777.9,1777.3,0.8055]
[1743687149678,0.05,1777.9,1777.8,5.62492]
[1743687149880,1e-05,1777.9,1777.8,7.59166419]
[1743687150295,1e-05,1777.9,1777.8,7.59165722]
[1743687150697,1e-05,1777.9,1777.8,7.59165596]
[1743687151008,0.05,1778.9,1778.6,0.7855]
[1743687151206,0.05,1778.9,1778.7,0.05622104]
[1743687151407,0.05,1778.9,1778.8,5.62176]
[1743687151609,40.507,1780.0,1779.0,5.62113]
[1743687151610,0.814,1780.0,1779.0,5.62113]
[1743687151813,6.43079,1780.4,1779.4,5.61965]
[1743687152010,5.61812,1780.0,1779.4,5.61965]
[1743687152313,5.66834,1779.9,1779.5,0.05619158]
[1743687152615,5.6193,1779.6,1779.0,5.62096]
[1743687152797,5.61976,1779.5,1778.9,0.8282]
[1743687152995,5.61976,1779.5,1779.0,0.0562031]
[1743687153308,5.61911,1779.7,1779.1,5.62067]
[1743687153495,5.6197,1779.5,1778.9,12.07075]
[1743687153695,5.61926,1779.6,1779.0,5.62112]
[1743687153897,5.61924,1779.6,1779.1,5.67697184]
[1743687154101,0.8169,1779.7,1778.9,0.8282]
[1743687154303,5.61953,1779.6,1779.0,0.05620817]
[1743687154615,0.05,1779.9,1779.4,5.61982]
[1743687154914,0.05,1779.9,1779.0,0.65056182]
[1743687155075,0.05,1779.9,1779.3,5.61996]
[1743687155277,0.05,1779.9,1779.8,5.6186]
[1743687155908,5.66542,1780.9,1779.8,5.6186]
[1743687155909,0.05,1780.9,1780.4,5.61646]
[1743687156083,0.05,1780.9,1780.4,0.7681]
[1743687156278,5.61573,1780.8,1780.4,0.7681]
[1743687156505,5.66515,1780.9,1780.4,0.7681]
[1743687156697,5.61599,1780.7,1780.1,0.7769]
[1743687156909,5.61632,1780.6,1780.1,0.7769]
[1743687157112,5.61589,1780.7,1780.1,0.7769]
[1743687157310,5.61589,1780.7,1780.2,0.05616874]
[1743687157546,5.61606,1780.7,1780.1,0.7769]
[1743687157722,5.61689,1780.4,1780.1,0.7769]
[1743687158026,5.61709,1780.3,1779.8,0.7769]
[1743687158210,5.61782,1780.1,1779.8,0.7769]
[1743687158626,5.61817,1780.0,1779.6,0.05618397]
[1743687158830,5.61879,1779.8,1779.4,0.7741]
[1743687158994,5.61866,1779.8,1779.4,0.7741]
[1743687159439,5.61893,1779.7,1779.1,5.62067]
[1743687159649,5.6183,1779.9,1779.2,0.05619556]
[1743687159793,11.23689,1779.9,1779.3,5.62003]
[1743687159993,0.774,1780.4,1779.2,5.62032]
[1743687159994,5.61821,1780.0,1779.2,5.62032]
[1743687160202,5.61816,1780.0,1779.4,5.61972]
[1743687160431,5.61762,1780.2,1779.6,5.6191]
[1743687160724,6.39097,1780.4,1779.5,5.61925]
[1743687160725,5.61799,1780.0,1779.5,5.61925]
[1743687161026,5.6178,1780.1,1779.5,5.61925]
[1743687161027,11.23573,1780.1,1779.5,5.61925]
[1743687161414,6.190823,1780.3,1779.1,6.744672]
[1743687161729,5.61959,1779.5,1779.0,0.8199]
[1743687162022,5.6201,1779.4,1778.8,5.6216]
[1743687162342,11.24087,1779.3,1778.8,0.05620865]
[1743687162542,5.62052,1779.2,1778.8,0.05620865]
[1743687162711,5.62035,1779.3,1778.8,5.67777189]
[1743687162909,0.7917,1779.8,1779.1,5.6206]
[1743687163146,13.63152,1779.9,1779.2,5.62032]
[1743687163425,5.61892,1779.7,1779.0,5.62096]
[1743687163626,5.61937,1779.6,1778.9,5.62113]
[1743687163827,5.61958,1779.5,1778.9,5.62113]
[1743687164049,5.61914,1779.7,1779.1,5.62054]
[1743687164192,5.61931,1779.6,1779.2,0.05619869]
[1743687164409,5.61914,1779.7,1779.2,0.05619869]
[1743687164948,5.61931,1779.6,1779.1,0.0561987]
[1743687165234,8.013,1779.9,1779.4,5.61973]
[1743687165422,5.61883,1779.8,1779.1,6.75065587]
[1743687165734,5.61909,1779.7,1779.1,11.2413]
[1743687165900,5.61861,1779.8,1779.2,5.67654618]
[1743687166101,13.63136,1779.9,1779.3,5.61998]
[1743687166307,0.8221,1780.1,1779.4,6.49662776]
[1743687166308,5.61824,1780.0,1779.4,6.49662776]
[1743687166504,6.41204,1780.4,1779.5,5.67567018]
[1743687166702,6.41204,1780.4,1779.7,5.61865]
[1743687166703,5.61693,1780.4,1779.7,5.61865]
[1743687166903,5.61644,1780.5,1779.9,5.61804]
[1743687167139,13.57306,1780.7,1780.1,5.61759]
[1743687167330,13.57306,1780.7,1780.1,6.40959]
[1743687167645,13.57282,1780.7,1780.1,0.792]
[1743687167840,7.957,1780.7,1780.2,5.61734]
[1743687168038,7.957,1780.7,1780.1,0.792]
[1743687168039,0.05,1780.9,1780.1,1.432996]
[1743687168226,5.66514,1780.9,1780.3,5.61679]
[1743687168409,0.05,1780.9,1780.5,5.61635]
[1743687168610,0.05,1780.9,1780.5,5.67254638]
[1743687168804,0.05,1780.9,1780.1,6.40948]
[1743687169008,5.61571,1780.8,1780.2,5.61717]